[Event "Asian Amateur Rapid 2024"]
[Site "Al Ain"]
[Date "2024.12.15"]
[Round "1.43"]
[White "Shafaghati, Rastin"]
[Black "Ahsan Feroz"]
[Result "1/2-1/2"]
[ECO "B08"]
[WhiteElo "1575"]
[BlackElo "1795"]
[Annotator "NA"]
[PlyCount "128"]
[EventDate "2024.12.15"]
[EventType "swiss"]
[EventCountry "UAE"]
[SourceTitle "playchess.com"]
[Source "ChessBase"]
[SourceQuality "1"]
[TimeControl "900+10"]

1. d4 {[%emt 0:00:02]} Nf6 {[%emt 0:00:01]} 2. Nf3 {[%emt 0:00:01]} g6 {[%emt 0:00:02]} 3. Nc3 {[%emt 0:00:02]} Bg7 {[%emt 0:00:10]} 4. e4 {[%emt 0:00:02]} d6 {[%emt 0:00:02]} 5. Be2 {[%emt 0:00:02]} O-O {[%emt 0:00:22]} 6. O-O {[%emt 0:00:03]} a6 {[%emt 0:00:01]} 7. Re1 {[%emt 0:00:03]} b5 {[%emt 0:00:22]} 8. e5 {[%emt 0:00:04]} dxe5 {[%emt 0:01:13]} 9. Nxe5 {[%emt 0:00:14]} Bb7 {[%emt 0:00:57]} 10. Bf3 {[%emt 0:00:27]} Bxf3 {[%emt 0:00:41]} 11. Qxf3 {[%emt 0:00:04]} c6 {[%emt 0:04:18]} 12. Be3 {[%emt 0:02:19]} Qc7 {[%emt 0:02:43]} 13. Bf4 {[%emt 0:02:30]} Nh5 {[%emt 0:00:35]} 14. Nxg6 {[%emt 0:01:25]} Nxf4 {[%emt 0:00:04]} 15. Nxf4 {[%emt 0:00:02]} e6 {[%emt 0:00:52]} 16. Nh5 {[%emt 0:00:23]} Kh8 {[%emt 0:01:38]} 17. Nxg7 {[%emt 0:00:27]} Kxg7 {[%emt 0:00:02]} 18. Re4 {[%emt 0:00:45]} Rg8 {[%emt 0:00:38]} 19. Rae1 {[%emt 0:03:06]} Nd7 {[%emt 0:00:18]} 20. Rg4+ {[%emt 0:00:55]} Kh8 {[%emt 0:00:50]} 21. Rxg8+ {[%emt 0:00:11]} Kxg8 {[%emt 0:00:01]} 22. Ne4 {[%emt 0:01:20]} Qd8 {[%emt 0:03:00]} 23. Qh5 {[%emt 0:01:24]} Qf8 {[%emt 0:00:00]} 24. Re3 {[%emt 0:00:18]} f5 {[%emt 0:00:00]} 25. Rh3 {[%emt 0:01:23]} Qe7 {[%emt 0:00:00]} 26. Ng5 {[%emt 0:00:43]} Nf6 {[%emt 0:00:00]} 27. Qe2 {[%emt 0:00:15]} Re8 {[%emt 0:00:05]} 28. Re3 {[%emt 0:00:10]} Qb4 {[%emt 0:00:30]} 29. c3 {[%emt 0:00:08]} Qa4 {[%emt 0:00:03]} 30. b3 {[%emt 0:00:33]} Qa3 {[%emt 0:00:01]} 31. f3 {[%emt 0:00:10]} h6 {[%emt 0:00:39]} 32. Nh3 {[%emt 0:00:19]} Nd5 {[%emt 0:00:02]} 33. Rd3 {[%emt 0:00:16]} Qc1+ {[%emt 0:00:04]} 34. Kf2 {[%emt 0:00:02]} Nxc3 {[%emt 0:00:05]} 35. Qd2 {[%emt 0:00:20]} Qxd2+ {[%emt 0:00:21]} 36. Rxd2 {[%emt 0:00:02]} b4 {[%emt 0:00:04]} 37. Nf4 {[%emt 0:00:07]} Kf7 {[%emt 0:00:02]} 38. Nd3 {[%emt 0:00:04]} a5 {[%emt 0:00:06]} 39. Ne5+ {[%emt 0:00:02]} Kf6 {[%emt 0:00:15]} 40. Nxc6 {[%emt 0:00:06]} Rc8 {[%emt 0:00:28]} 41. Nxa5 {[%emt 0:00:04]} Ra8 {[%emt 0:00:01]} 42. Nc6 {[%emt 0:00:11]} Nxa2 {[%emt 0:00:01]} 43. Ne5 {[%emt 0:01:16]} Nc3 {[%emt 0:00:16]} 44. Nc6 {[%emt 0:00:00]} Nd5 {[%emt 0:00:09]} 45. Rb2 {[%emt 0:00:00]} Rc8 {[%emt 0:00:04]} 46. Ne5 {[%emt 0:00:00]} Rc3 {[%emt 0:00:20]} 47. g3 {[%emt 0:00:13]} h5 {[%emt 0:00:11]} 48. h4 {[%emt 0:00:15]} Rc1 {[%emt 0:00:07]} 49. Nd3 {[%emt 0:00:20]} Rc3 {[%emt 0:00:07]} 50. Ne5 {[%emt 0:00:03]} Rc1 {[%emt 0:00:06]} 51. Nd3 {[%emt 0:00:02]} Rd1 {[%emt 0:00:04]} 52. Nf4 {[%emt 0:00:01]} Nxf4 {[%emt 0:00:25]} 53. gxf4 {[%emt 0:00:02]} Rxd4 {[%emt 0:00:00]} 54. Ke3 {[%emt 0:00:05]} e5 {[%emt 0:00:10]} 55. fxe5+ {[%emt 0:00:08]} Kxe5 {[%emt 0:00:01]} 56. Rh2 {[%emt 0:00:02]} Rf4 {[%emt 0:00:40]} 57. Rh1 {[%emt 0:00:21]} Rd4 {[%emt 0:00:04]} 58. Rh2 {[%emt 0:00:04]} f4+ {[%emt 0:00:04]} 59. Ke2 {[%emt 0:00:03]} Rd5 {[%emt 0:00:14]} 60. Rg2 {[%emt 0:00:07]} Kf6 {[%emt 0:00:01]} 61. Rg8 {[%emt 0:00:13]} Re5+ {[%emt 0:00:24]} 62. Kf2 {[%emt 0:00:02]} Rb5 {[%emt 0:00:06]} 63. Rc8 {[%emt 0:00:10]} Ke5 {[%emt 0:00:09]} 64. Rc4 {[%emt 0:00:05]} Kf5 {[%emt 0:00:16]} 1/2-1/2

[Event "Asian Amateur Rapid 2024"]
[Site "Al Ain"]
[Date "2024.12.15"]
[Round "1.44"]
[White "Mohamed Yousuf Al-Ali"]
[Black "Mohammed Hamad Alkhemeiri"]
[Result "1-0"]
[ECO "C45"]
[WhiteElo "1569"]
[BlackElo "1482"]
[Annotator "NA"]
[PlyCount "39"]
[EventDate "2024.12.15"]
[EventType "swiss"]
[EventCountry "UAE"]
[SourceTitle "playchess.com"]
[Source "ChessBase"]
[SourceQuality "1"]
[TimeControl "900+10"]

1. e4 {[%emt 0:00:01]} e5 {[%emt 0:00:29]} 2. Nf3 {[%emt 0:00:02]} Nc6 {[%emt 0:00:02]} 3. d4 {[%emt 0:00:07]} exd4 {[%emt 0:00:05]} 4. Nxd4 {[%emt 0:00:01]} Bc5 {[%emt 0:00:08]} 5. Be3 {[%emt 0:00:33]} Qf6 {[%emt 0:00:07]} 6. c3 {[%emt 0:00:26]} Nge7 {[%emt 0:00:53]} 7. Be2 {[%emt 0:01:31]} d5 {[%emt 0:00:30]} 8. O-O {[%emt 0:00:30]} dxe4 {[%emt 0:00:36]} 9. a4 {[%emt 0:01:06]} Nxd4 {[%emt 0:00:50]} 10. cxd4 {[%emt 0:00:03]} Bb4 {[%emt 0:00:09]} 11. Qc2 {[%emt 0:00:15]} Qc6 {[%emt 0:00:27]} 12. Bb5 {[%emt 0:00:08]} Bd7 {[%emt 0:00:50]} 13. Bxc6 {[%emt 0:00:03]} Bxc6 {[%emt 0:00:02]} 14. Nc3 {[%emt 0:00:25]} O-O-O {[%emt 0:00:14]} 15. Nb5 {[%emt 0:00:13]} Bxb5 {[%emt 0:01:43]} 16. axb5 {[%emt 0:00:02]} Kb8 {[%emt 0:01:38]} 17. Rfc1 {[%emt 0:00:08]} Nd5 {[%emt 0:00:07]} 18. Bf4 {[%emt 0:00:23]} Rd7 {[%emt 0:00:43]} 19. Qa4 {[%emt 0:00:17]} a5 {[%emt 0:01:12]} 20. bxa6 {[%emt 0:00:08]} 1-0

[Event "Asian Amateur Rapid 2024"]
[Site "Al Ain"]
[Date "2024.12.15"]
[Round "1.46"]
[White "Saket Atul Kumar"]
[Black "KHALID ALHAWAY"]
[Result "1-0"]
[ECO "C45"]
[WhiteElo "1633"]
[BlackElo "1529"]
[Annotator "NA"]
[PlyCount "71"]
[EventDate "2024.12.15"]
[EventType "swiss"]
[EventCountry "UAE"]
[SourceTitle "playchess.com"]
[Source "ChessBase"]
[SourceQuality "1"]
[TimeControl "900+10"]

1. e4 {[%emt 0:00:00]} e5 {[%emt 0:00:00]} 2. Nf3 {[%emt 0:00:02]} Nc6 {[%emt 0:00:00]} 3. Nc3 {[%emt 0:00:01]} Nf6 {[%emt 0:00:01]} 4. d4 {[%emt 0:00:01]} exd4 {[%emt 0:00:32]} 5. Nxd4 {[%emt 0:00:01]} Nxd4 {[%emt 0:00:01]} 6. Qxd4 {[%emt 0:00:02]} d6 {[%emt 0:00:07]} 7. Bf4 {[%emt 0:00:01]} Be7 {[%emt 0:01:32]} 8. O-O-O {[%emt 0:00:02]} O-O {[%emt 0:00:12]} 9. f3 {[%emt 0:00:05]} Be6 {[%emt 0:00:08]} 10. Kb1 {[%emt 0:00:01]} Nh5 {[%emt 0:01:12]} 11. Be3 {[%emt 0:00:22]} Bf6 {[%emt 0:00:50]} 12. Qd2 {[%emt 0:00:05]} Be7 {[%emt 0:01:40]} 13. g4 {[%emt 0:00:08]} Nf6 {[%emt 0:00:01]} 14. h4 {[%emt 0:00:01]} c6 {[%emt 0:01:02]} 15. h5 {[%emt 0:16:48]} b5 {[%emt 0:00:52]} 16. g5 {[%emt 0:00:00]} Nd7 {[%emt 0:00:04]} 17. g6 {[%emt 0:00:00]} b4 {[%emt 0:00:45]} 18. Na4 {[%emt 0:00:00]} c5 {[%emt 0:00:35]} 19. gxh7+ {[%emt 0:00:00]} Kxh7 {[%emt 0:00:03]} 20. f4 {[%emt 0:00:00]} Bg4 {[%emt 0:00:53]} 21. Be2 {[%emt 0:00:00]} Bxe2 {[%emt 0:00:04]} 22. Qxe2 {[%emt 0:00:00]} Bf6 {[%emt 0:00:51]} 23. Rxd6 {[%emt 0:00:00]} Qc7 {[%emt 0:01:36]} 24. e5 {[%emt 0:00:00]} Nxe5 {[%emt 0:01:20]} 25. fxe5 {[%emt 0:00:00]} Bxe5 {[%emt 0:00:01]} 26. Rd5 {[%emt 0:00:00]} Qc6 {[%emt 0:00:28]} 27. Qd3+ {[%emt 0:00:00]} Kg8 {[%emt 0:00:36]} 28. h6 {[%emt 0:00:00]} Rad8 {[%emt 0:00:22]} 29. Rd1 {[%emt 0:00:00]} c4 {[%emt 0:02:54]} 30. Qe4 {[%emt 0:00:00]} Rxd5 {[%emt 0:01:08]} 31. Qxd5 {[%emt 0:00:00]} Qxa4 {[%emt 0:00:15]} 32. Qxe5 {[%emt 0:00:00]} f6 {[%emt 0:00:05]} 33. Qe6+ {[%emt 0:00:00]} Kh8 {[%emt 0:00:04]} 34. hxg7+ {[%emt 0:00:00]} Kxg7 {[%emt 0:00:04]} 35. Rg1+ {[%emt 0:00:00]} Kh8 {[%emt 0:00:09]} 36. Qh3# {[%emt 0:00:00]} 1-0

[Event "Asian Amateur Rapid 2024"]
[Site "Al Ain"]
[Date "2024.12.15"]
[Round "1.47"]
[White "Alymjanov, Mekan"]
[Black "Alviz, Joshua Ezekiel"]
[Result "0-1"]
[ECO "D48"]
[WhiteElo "1480"]
[BlackElo "1766"]
[Annotator "NA"]
[PlyCount "74"]
[EventDate "2024.12.15"]
[EventType "swiss"]
[EventCountry "UAE"]
[SourceTitle "playchess.com"]
[Source "ChessBase"]
[SourceQuality "1"]
[TimeControl "900+10"]

1. d4 {[%emt 0:00:03]} d5 {[%emt 0:00:01]} 2. c4 {[%emt 0:00:01]} e6 {[%emt 0:00:01]} 3. e3 {[%emt 0:00:05]} Nf6 {[%emt 0:00:01]} 4. a3 {[%emt 0:00:04]} dxc4 {[%emt 0:00:24]} 5. Bxc4 {[%emt 0:00:01]} a6 {[%emt 0:00:00]} 6. Nc3 {[%emt 0:00:02]} b5 {[%emt 0:00:01]} 7. Bd3 {[%emt 0:00:03]} Bb7 {[%emt 0:00:01]} 8. Nf3 {[%emt 0:00:03]} Nbd7 {[%emt 0:00:03]} 9. O-O {[%emt 0:00:02]} c5 {[%emt 0:00:01]} 10. dxc5 {[%emt 0:00:10]} Bxc5 {[%emt 0:00:07]} 11. b4 {[%emt 0:00:01]} Be7 {[%emt 0:00:10]} 12. Bb2 {[%emt 0:00:02]} O-O {[%emt 0:00:02]} 13. Rc1 {[%emt 0:00:05]} Rc8 {[%emt 0:00:35]} 14. h3 {[%emt 0:00:49]} Bxf3 {[%emt 0:00:47]} 15. Qxf3 {[%emt 0:00:01]} Ne5 {[%emt 0:00:01]} 16. Bxh7+ {[%emt 0:01:32]} Kxh7 {[%emt 0:00:16]} 17. Qg3 {[%emt 0:01:51]} Ng6 {[%emt 0:00:21]} 18. Rfd1 {[%emt 0:00:17]} Qc7 {[%emt 0:00:08]} 19. Qf3 {[%emt 0:00:33]} Ne5 {[%emt 0:00:24]} 20. Qe2 {[%emt 0:03:21]} Qc4 {[%emt 0:00:00]} 21. Qc2+ {[%emt 0:00:53]} Kg8 {[%emt 0:00:02]} 22. Rd4 {[%emt 0:00:29]} Qc6 {[%emt 0:00:50]} 23. g4 {[%emt 0:03:16]} Nf3+ {[%emt 0:00:03]} 24. Kf1 {[%emt 0:00:19]} Nxd4 {[%emt 0:00:03]} 25. exd4 {[%emt 0:00:01]} Qh1+ {[%emt 0:00:07]} 26. Ke2 {[%emt 0:00:57]} Qxh3 {[%emt 0:00:01]} 27. g5 {[%emt 0:00:01]} Qg4+ {[%emt 0:00:02]} 28. f3 {[%emt 0:01:38]} Qg2+ {[%emt 0:00:23]} 29. Ke3 {[%emt 0:01:19]} Qxg5+ {[%emt 0:00:10]} 30. Kf2 {[%emt 0:00:10]} Bd6 {[%emt 0:00:12]} 31. Rg1 {[%emt 0:00:59]} Qh4+ {[%emt 0:00:01]} 32. Kf1 {[%emt 0:00:09]} Qh2 {[%emt 0:02:11]} 33. Rg2 {[%emt 0:01:23]} Qf4 {[%emt 0:00:59]} 34. Qf2 {[%emt 0:00:00]} Nd5 {[%emt 0:00:39]} 35. Nxd5 {[%emt 0:00:00]} exd5 {[%emt 0:00:09]} 36. Rg4 {[%emt 0:00:11]} Qf5 {[%emt 0:00:35]} 37. Kg2 {[%emt 0:00:17]} Rc2 {[%emt 0:00:02]} 0-1

[Event "Asian Amateur Rapid 2024"]
[Site "Al Ain"]
[Date "2024.12.15"]
[Round "1.48"]
[White "Al Balushi, Salim"]
[Black "Al Riyami, Saeed"]
[Result "1-0"]
[ECO "A16"]
[WhiteElo "1612"]
[BlackElo "1426"]
[Annotator "NA"]
[PlyCount "63"]
[EventDate "2024.12.15"]
[EventType "swiss"]
[EventCountry "UAE"]
[SourceTitle "playchess.com"]
[Source "ChessBase"]
[SourceQuality "1"]
[TimeControl "900+10"]

1. c4 {[%emt 0:00:02]} e5 {[%emt 0:00:05]} 2. Nc3 {[%emt 0:00:02]} Nf6 {[%emt 0:00:07]} 3. e4 {[%emt 0:00:04]} b6 {[%emt 0:00:12]} 4. g3 {[%emt 0:00:12]} Bb7 {[%emt 0:00:04]} 5. Bg2 {[%emt 0:00:03]} d6 {[%emt 0:00:02]} 6. Nge2 {[%emt 0:00:10]} Nbd7 {[%emt 0:00:04]} 7. O-O {[%emt 0:00:07]} Be7 {[%emt 0:00:02]} 8. d3 {[%emt 0:00:03]} O-O {[%emt 0:00:04]} 9. h3 {[%emt 0:00:12]} c5 {[%emt 0:00:16]} 10. Be3 {[%emt 0:00:10]} Rc8 {[%emt 0:00:19]} 11. Qd2 {[%emt 0:00:08]} Re8 {[%emt 0:00:26]} 12. f4 {[%emt 0:00:14]} h6 {[%emt 0:00:54]} 13. f5 {[%emt 0:00:13]} Nb8 {[%emt 0:00:28]} 14. Rf2 {[%emt 0:01:14]} Na6 {[%emt 0:14:27]} 15. g4 {[%emt 0:01:27]} Nb4 {[%emt 0:00:00]} 16. Bf3 {[%emt 0:00:41]} Nc6 {[%emt 0:00:00]} 17. Nd5 {[%emt 0:01:17]} Nxd5 {[%emt 0:00:00]} 18. cxd5 {[%emt 0:00:40]} Nd4 {[%emt 0:00:00]} 19. Bxh6 {[%emt 0:02:42]} Nxf3+ {[%emt 0:00:00]} 20. Rxf3 {[%emt 0:00:08]} Kh7 {[%emt 0:00:00]} 21. Be3 {[%emt 0:00:40]} Kg8 {[%emt 0:00:00]} 22. h4 {[%emt 0:00:06]} Bxh4 {[%emt 0:00:00]} 23. Rh3 {[%emt 0:00:42]} Be7 {[%emt 0:00:00]} 24. g5 {[%emt 0:00:29]} f6 {[%emt 0:00:00]} 25. g6 {[%emt 0:00:44]} Qd7 {[%emt 0:00:00]} 26. Ng3 {[%emt 0:00:19]} Bd8 {[%emt 0:00:00]} 27. Rh7 {[%emt 0:00:48]} Kf8 {[%emt 0:00:00]} 28. Qh2 {[%emt 0:00:41]} Bc7 {[%emt 0:00:00]} 29. Nh5 {[%emt 0:01:19]} Qb5 {[%emt 0:00:00]} 30. Rd1 {[%emt 0:00:44]} Ke7 {[%emt 0:00:00]} 31. Nxf6 {[%emt 0:00:24]} Kxf6 {[%emt 0:00:00]} 32. Qh4# {[%emt 0:00:05]} 1-0

[Event "Asian Amateur Rapid 2024"]
[Site "Al Ain"]
[Date "2024.12.15"]
[Round "2.1"]
[White "nawaf saleh basabaien"]
[Black "Bigabylov, Zhuban"]
[Result "0-1"]
[ECO "A01"]
[WhiteElo "1729"]
[BlackElo "1907"]
[Annotator "RC"]
[PlyCount "65"]
[EventDate "2024.12.15"]
[EventType "swiss"]
[EventCountry "UAE"]
[SourceTitle "playchess.com"]
[Source "ChessBase"]
[SourceQuality "1"]
[TimeControl "900+10"]

1. b3 {[%emt 0:00:02]} Nf6 {[%emt 0:00:09]} 2. Bb2 {[%emt 0:00:03]} g6 {[%emt 0:00:02]} 3. Bxf6 {[%emt 0:00:10]} exf6 {[%emt 0:00:02]} 4. c4 {[%emt 0:00:03]} Bg7 {[%emt 0:00:02]} 5. Nc3 {[%emt 0:00:02]} O-O {[%emt 0:00:05]} 6. g3 {[%emt 0:00:02]} d6 {[%emt 0:00:25]} 7. Bg2 {[%emt 0:00:03]} f5 {[%emt 0:00:03]} 8. e3 {[%emt 0:00:03]} Nd7 {[%emt 0:00:17]} 9. Nge2 {[%emt 0:00:04]} c6 {[%emt 0:00:19]} 10. O-O {[%emt 0:00:09]} a5 {[%emt 0:00:08]} 11. d4 {[%emt 0:00:08]} Nf6 {[%emt 0:00:30]} 12. Qd3 {[%emt 0:00:29]} Re8 {[%emt 0:00:17]} 13. Rad1 {[%emt 0:00:45]} Qe7 {[%emt 0:00:15]} 14. d5 {[%emt 0:00:50]} c5 {[%emt 0:00:14]} 15. a4 {[%emt 0:01:02]} Bd7 {[%emt 0:00:02]} 16. h4 {[%emt 0:02:19]} h6 {[%emt 0:00:47]} 17. Rfe1 {[%emt 0:03:13]} g5 {[%emt 0:01:31]} 18. hxg5 {[%emt 0:00:18]} hxg5 {[%emt 0:00:02]} 19. Nb5 {[%emt 0:00:04]} Bxb5 {[%emt 0:00:13]} 20. cxb5 {[%emt 0:00:13]} Ne4 {[%emt 0:00:04]} 21. Bxe4 {[%emt 0:04:05]} fxe4 {[%emt 0:00:36]} 22. Qc2 {[%emt 0:00:22]} Qe5 {[%emt 0:00:14]} 23. Kg2 {[%emt 0:00:22]} Qf5 {[%emt 0:00:19]} 24. Rh1 {[%emt 0:00:59]} Bf6 {[%emt 0:01:34]} 25. Ng1 {[%emt 0:00:27]} Kg7 {[%emt 0:00:24]} 26. Qe2 {[%emt 0:00:12]} g4 {[%emt 0:00:12]} 27. Qd2 {[%emt 0:02:11]} Rh8 {[%emt 0:00:12]} 28. Rxh8 {[%emt 0:00:12]} Rxh8 {[%emt 0:00:03]} 29. Qxa5 {[%emt 0:00:23]} Qh5 {[%emt 0:02:18]} 30. Kf1 {[%emt 0:00:07]} Qh1 {[%emt 0:00:24]} 31. Ke2 {[%emt 0:00:28]} Rh2 {[%emt 0:00:28]} 32. Qe1 {[%emt 0:00:05]} Qg2 {[%emt 0:00:55]} 33. a5 {[%emt 0:00:45]} 0-1

[Event "Asian Amateur Rapid 2024"]
[Site "Al Ain"]
[Date "2024.12.15"]
[Round "2.2"]
[White "Gong, Bonuonuo"]
[Black "Daneshpour, S.A."]
[Result "1/2-1/2"]
[ECO "A21"]
[WhiteElo "1685"]
[BlackElo "1899"]
[Annotator "NA RC"]
[PlyCount "163"]
[EventDate "2024.12.15"]
[EventType "swiss"]
[EventCountry "UAE"]
[SourceTitle "playchess.com"]
[Source "ChessBase"]
[SourceQuality "1"]
[TimeControl "900+10"]

1. c4 {[%emt 0:00:02]} e5 {[%emt 0:00:04]} 2. Nc3 {[%emt 0:00:02]} Nf6 {[%emt 0:00:01]} 3. g3 {[%emt 0:00:01]} Bb4 {[%emt 0:00:03]} 4. Bg2 {[%emt 0:00:05]} Bxc3 {[%emt 0:00:02]} 5. bxc3 {[%emt 0:00:01]} O-O {[%emt 0:00:06]} 6. d3 {[%emt 0:00:02]} Re8 {[%emt 0:00:01]} 7. Qc2 {[%emt 0:00:19]} Nc6 {[%emt 0:00:10]} 8. e3 {[%emt 0:00:34]} d5 {[%emt 0:00:02]} 9. cxd5 {[%emt 0:00:11]} Nxd5 {[%emt 0:00:01]} 10. Ne2 {[%emt 0:00:01]} Bg4 {[%emt 0:00:13]} 11. Bb2 {[%emt 0:00:18]} Qd7 {[%emt 0:00:43]} 12. O-O {[%emt 0:00:05]} Bh3 {[%emt 0:00:20]} 13. Qa4 {[%emt 0:02:49]} Rad8 {[%emt 0:02:06]} 14. d4 {[%emt 0:02:09]} Nxd4 {[%emt 0:00:35]} 15. Qd1 {[%emt 0:01:27]} Bxg2 {[%emt 0:00:03]} 16. Kxg2 {[%emt 0:00:07]} Qc6 {[%emt 0:01:42]} 17. e4 {[%emt 0:02:19]} Nxe2 {[%emt 0:00:47]} 18. Qxe2 {[%emt 0:00:02]} Nxc3 {[%emt 0:00:52]} 19. Bxc3 {[%emt 0:00:01]} Qxc3 {[%emt 0:00:01]} 20. Rfc1 {[%emt 0:00:04]} Qa5 {[%emt 0:00:21]} 21. Rab1 {[%emt 0:00:03]} Rd2 {[%emt 0:00:51]} 22. Qb5 {[%emt 0:00:20]} Qxb5 {[%emt 0:00:16]} 23. Rxb5 {[%emt 0:00:02]} Rxa2 {[%emt 0:05:17]} 24. Rxb7 {[%emt 0:00:02]} Re2 {[%emt 0:01:45]} 25. Rcxc7 {[%emt 0:00:09]} Rf8 {[%emt 0:00:17]} 26. Kf3 {[%emt 0:00:04]} Ra2 {[%emt 0:00:51]} 27. Rxa7 {[%emt 0:00:03]} Rxa7 {[%emt 0:00:02]} 28. Rxa7 {[%emt 0:00:02]} g6 {[%emt 0:00:07]} 29. Re7 {[%emt 0:00:12]} f6 {[%emt 0:00:08]} 30. Ke3 {[%emt 0:00:13]} Rd8 {[%emt 0:00:36]} 31. f4 {[%emt 0:00:06]} exf4+ {[%emt 0:00:02]} 32. Kxf4 {[%emt 0:00:18]} Rd2 {[%emt 0:00:06]} 33. h4 {[%emt 0:00:06]} Rf2+ {[%emt 0:00:02]} 34. Ke3 {[%emt 0:00:09]} Rf1 {[%emt 0:00:02]} 35. Ke2 {[%emt 0:00:02]} Ra1 {[%emt 0:00:07]} 36. Kf3 {[%emt 0:00:03]} h5 {[%emt 0:00:06]} 37. Kf4 {[%emt 0:01:01]} Rf1+ {[%emt 0:00:07]} 38. Ke3 {[%emt 0:00:06]} Kf8 {[%emt 0:00:04]} 39. Ra7 {[%emt 0:00:05]} Rg1 {[%emt 0:00:07]} 40. Kf2 {[%emt 0:00:01]} Rb1 {[%emt 0:00:03]} 41. Kf3 {[%emt 0:00:21]} Rb3+ {[%emt 0:00:06]} 42. Kf2 {[%emt 0:00:03]} Rc3 {[%emt 0:00:06]} 43. Rb7 {[%emt 0:00:03]} Ra3 {[%emt 0:00:01]} 44. Rc7 {[%emt 0:00:05]} Kg8 {[%emt 0:00:04]} 45. Rb7 {[%emt 0:00:03]} Rd3 {[%emt 0:00:23]} 46. Ra7 {[%emt 0:00:04]} Rc3 {[%emt 0:00:03]} 47. Rb7 {[%emt 0:00:02]} Rc5 {[%emt 0:00:05]} 48. Kf3 {[%emt 0:00:05]} Ra5 {[%emt 0:00:09]} 49. Rc7 {[%emt 0:00:03]} f5 {[%emt 0:00:06]} 50. exf5 {[%emt 0:00:08]} Rxf5+ {[%emt 0:00:02]} 51. Kg2 {[%emt 0:00:03]} Rf6 {[%emt 0:00:09]} 52. Ra7 {[%emt 0:00:03]} Re6 {[%emt 0:00:06]} 53. Rb7 {[%emt 0:00:03]} Ra6 {[%emt 0:00:01]} 54. Rc7 {[%emt 0:00:01]} Ra2+ {[%emt 0:00:12]} 55. Kf3 {[%emt 0:00:01]} Ra5 {[%emt 0:00:06]} 56. Kg2 {[%emt 0:00:15]} Ra2+ {[%emt 0:00:04]} 57. Kf3 {[%emt 0:00:01]} Ra5 {[%emt 0:00:01]} 58. Kg2 {[%emt 0:00:02]} Rf5 {[%emt 0:00:02]} 59. Ra7 {[%emt 0:00:02]} Re5 {[%emt 0:00:06]} 60. Rb7 {[%emt 0:00:03]} Kf8 {[%emt 0:00:02]} 61. Ra7 {[%emt 0:00:02]} Re2+ {[%emt 0:00:12]} 62. Kf3 {[%emt 0:00:01]} Re5 {[%emt 0:00:02]} 63. Rb7 {[%emt 0:00:03]} Rf5+ {[%emt 0:00:03]} 64. Kg2 {[%emt 0:00:03]} Rf6 {[%emt 0:00:04]} 65. Ra7 {[%emt 0:00:03]} Ke8 {[%emt 0:00:47]} 66. Rb7 {[%emt 0:00:10]} Re6 {[%emt 0:00:06]} 67. Kf3 {[%emt 0:00:01]} Rf6+ {[%emt 0:00:04]} 68. Kg2 {[%emt 0:00:02]} Kf8 {[%emt 0:00:22]} 69. Ra7 {[%emt 0:00:01]} Rb6 {[%emt 0:00:02]} 70. Kf3 {[%emt 0:00:01]} Rb4 {[%emt 0:00:02]} 71. Rc7 {[%emt 0:00:03]} Rb5 {[%emt 0:00:19]} 72. Ra7 {[%emt 0:00:02]} Rc5 {[%emt 0:00:02]} 73. Rb7 {[%emt 0:00:01]} Rf5+ {[%emt 0:00:07]} 74. Kg2 {[%emt 0:00:01]} Kg8 {[%emt 0:00:08]} 75. Ra7 {[%emt 0:00:02]} Rb5 {[%emt 0:00:29]} 76. Kf3 {[%emt 0:00:01]} Rb4 {[%emt 0:00:05]} 77. Rc7 {[%emt 0:00:02]} Rg4 {[%emt 0:04:03]} 78. Re7 {[%emt 0:00:07]} Kf8 {[%emt 0:00:00]} 79. Re4 {[%emt 0:00:25]} Rxe4 {[%emt 0:00:00]} 80. Kxe4 {[%emt 0:00:02]} Kf7 {[%emt 0:00:00]} 81. Kf4 {[%emt 0:00:01]} Kf6 {[%emt 0:00:00]} 82. g4 {[%emt 0:00:01]} 1/2-1/2

[Event "Asian Amateur Rapid 2024"]
[Site "Al Ain"]
[Date "2024.12.15"]
[Round "2.3"]
[White "Alviz, Joshua Ezekiel"]
[Black "Hayder, Hassan Shyaa"]
[Result "1-0"]
[ECO "C84"]
[WhiteElo "1766"]
[BlackElo "1991"]
[Annotator "RC"]
[PlyCount "109"]
[EventDate "2024.12.15"]
[EventType "swiss"]
[EventCountry "UAE"]
[SourceTitle "playchess.com"]
[Source "ChessBase"]
[SourceQuality "1"]
[TimeControl "900+10"]

1. e4 {[%emt 0:00:03]} e5 {[%emt 0:00:01]} 2. Nf3 {[%emt 0:00:01]} Nc6 {[%emt 0:00:01]} 3. Bb5 {[%emt 0:00:02]} a6 {[%emt 0:00:01]} 4. Ba4 {[%emt 0:00:01]} Nf6 {[%emt 0:00:02]} 5. O-O {[%emt 0:00:02]} Be7 {[%emt 0:00:01]} 6. d3 {[%emt 0:00:01]} b5 {[%emt 0:00:01]} 7. Bb3 {[%emt 0:00:01]} O-O {[%emt 0:00:03]} 8. Nc3 {[%emt 0:00:02]} d6 {[%emt 0:00:10]} 9. a3 {[%emt 0:00:01]} Bg4 {[%emt 0:00:08]} 10. Be3 {[%emt 0:00:01]} Nd4 {[%emt 0:00:49]} 11. Bxd4 {[%emt 0:00:02]} exd4 {[%emt 0:00:02]} 12. Nd5 {[%emt 0:00:02]} Nxd5 {[%emt 0:00:30]} 13. Bxd5 {[%emt 0:00:02]} Rb8 {[%emt 0:00:12]} 14. h3 {[%emt 0:01:05]} Bxf3 {[%emt 0:01:23]} 15. Qxf3 {[%emt 0:00:01]} Qd7 {[%emt 0:01:43]} 16. Bb3 {[%emt 0:01:23]} Bf6 {[%emt 0:03:11]} 17. a4 {[%emt 0:00:03]} b4 {[%emt 0:00:10]} 18. a5 {[%emt 0:00:01]} Qe7 {[%emt 0:00:17]} 19. Bc4 {[%emt 0:00:45]} Ra8 {[%emt 0:00:01]} 20. Bd5 {[%emt 0:01:16]} Rab8 {[%emt 0:00:16]} 21. Qd1 {[%emt 0:00:26]} g6 {[%emt 0:01:56]} 22. f4 {[%emt 0:00:13]} Kg7 {[%emt 0:00:48]} 23. Bc4 {[%emt 0:00:21]} Ra8 {[%emt 0:00:05]} 24. Qd2 {[%emt 0:00:41]} c5 {[%emt 0:00:12]} 25. g3 {[%emt 0:01:26]} Ra7 {[%emt 0:00:10]} 26. Kg2 {[%emt 0:00:02]} g5 {[%emt 0:00:58]} 27. e5 {[%emt 0:02:53]} dxe5 {[%emt 0:00:10]} 28. fxe5 {[%emt 0:00:02]} Bxe5 {[%emt 0:00:21]} 29. Rae1 {[%emt 0:00:36]} f6 {[%emt 0:00:05]} 30. Bd5 {[%emt 0:00:42]} Qd6 {[%emt 0:00:11]} 31. Bc4 {[%emt 0:01:09]} Re7 {[%emt 0:00:02]} 32. Qf2 {[%emt 0:00:15]} Rfe8 {[%emt 0:01:07]} 33. Qf3 {[%emt 0:01:05]} Rd8 {[%emt 0:01:05]} 34. Re4 {[%emt 0:00:50]} Qc6 {[%emt 0:00:34]} 35. Kg1 {[%emt 0:00:09]} Qd6 {[%emt 0:00:10]} 36. Kg2 {[%emt 0:00:05]} Rde8 {[%emt 0:00:11]} 37. h4 {[%emt 0:00:20]} gxh4 {[%emt 0:00:21]} 38. Rxh4 {[%emt 0:00:07]} Kh8 {[%emt 0:00:07]} 39. Rg4 {[%emt 0:00:54]} Qc7 {[%emt 0:00:41]} 40. Qd5 {[%emt 0:00:41]} Rg7 {[%emt 0:00:08]} 41. Rxg7 {[%emt 0:00:46]} Qxg7 {[%emt 0:00:03]} 42. Qf3 {[%emt 0:00:01]} Bc7 {[%emt 0:01:00]} 43. Qxf6 {[%emt 0:00:34]} Re2+ {[%emt 0:00:23]} 44. Kh3 {[%emt 0:00:43]} Qxf6 {[%emt 0:00:55]} 45. Rxf6 {[%emt 0:00:01]} Be5 {[%emt 0:00:05]} 46. Rxa6 {[%emt 0:00:23]} Rxc2 {[%emt 0:00:29]} 47. Ra8+ {[%emt 0:00:16]} Kg7 {[%emt 0:00:03]} 48. a6 {[%emt 0:00:09]} Rxc4 {[%emt 0:00:57]} 49. dxc4 {[%emt 0:00:08]} d3 {[%emt 0:00:02]} 50. Rd8 {[%emt 0:00:45]} Bd4 {[%emt 0:00:09]} 51. a7 {[%emt 0:00:02]} d2 {[%emt 0:00:05]} 52. a8=Q {[%emt 0:02:10]} d1=Q {[%emt 0:00:07]} 53. Qb7+ {[%emt 0:00:00]} Kf6 {[%emt 0:00:43]} 54. Rd6+ {[%emt 0:00:00]} Kf5 {[%emt 0:00:10]} 55. Qd5+ {[%emt 0:00:00]} 1-0